bitfinex/quotes_BTCUSD_20220115
["timestamp","ask_amount","ask_price","bid_price","bid_amount"]
[1642261702854,0.34416496,43356.0,43352.0,0.0001891]
[1642261703052,0.28797476,43355.0,43352.0,0.0001891]
[1642261703252,0.44416496,43356.0,43352.0,0.00112297]
[1642261703695,0.44416496,43356.0,43353.0,0.00017191]
[1642261704095,0.44416496,43356.0,43354.0,0.00016076]
[1642261704298,0.374878,43355.0,43354.0,0.00016076]
[1642261704796,0.65769581,43355.0,43354.0,0.00016076]
[1642261707246,0.28281781,43355.0,43354.0,0.00016076]
[1642261708447,0.44416496,43356.0,43354.0,0.00016076]
[1642261708647,0.34416496,43356.0,43354.0,0.00016076]
[1642261708848,0.44416496,43356.0,43355.0,0.00013752]
[1642261709049,0.81904296,43356.0,43355.0,0.00013752]
[1642261709448,0.374878,43356.0,43355.0,0.00013752]
[1642261709653,0.3083,43361.0,43355.0,0.00013752]
[1642261710450,0.3083,43361.0,43356.0,0.00093382]
[1642261710851,0.3083,43361.0,43357.0,0.00010314]
[1642261711498,1.26091165,43362.0,43357.0,0.00010314]
[1642261711795,0.33471165,43362.0,43357.0,0.00103695]
[1642261712194,0.33471165,43362.0,43358.0,8.595e-05]
[1642261712798,0.33471165,43362.0,43358.0,0.00101975]
[1642261713293,0.33471165,43362.0,43359.0,6.876e-05]
[1642261713495,0.374878,43361.0,43359.0,6.876e-05]
[1642261715052,0.57516998,43362.0,43359.0,6.876e-05]
[1642261715456,0.374878,43361.0,43358.0,0.0009338]
[1642261715656,0.33471165,43362.0,43359.0,6.876e-05]
[1642261715853,0.374878,43361.0,43359.0,6.876e-05]
[1642261716053,0.372278,43361.0,43359.0,6.876e-05]
[1642261716553,0.372278,43361.0,43358.0,0.0009338]
[1642261716554,0.472278,43361.0,43358.0,0.0009338]
[1642261716953,0.472278,43361.0,43359.0,6.876e-05]
[1642261717456,0.372278,43361.0,43359.0,6.876e-05]
[1642261717654,0.472278,43361.0,43359.0,6.876e-05]
[1642261717854,0.472278,43361.0,43358.0,0.0009338]
[1642261718057,0.472278,43361.0,43359.0,6.876e-05]
[1642261719109,0.472278,43361.0,43358.0,0.0009338]
[1642261719305,0.472278,43361.0,43359.0,6.876e-05]
[1642261720307,0.472278,43361.0,43358.0,0.0009338]
[1642261720506,0.472278,43361.0,43359.0,6.876e-05]
[1642261720711,0.467278,43361.0,43359.0,6.876e-05]
[1642261721409,0.467278,43361.0,43358.0,0.0009338]
[1642261721808,0.467278,43361.0,43359.0,6.876e-05]
[1642261722647,0.467278,43361.0,43358.0,0.0009338]
[1642261722846,0.467278,43361.0,43359.0,6.876e-05]
[1642261723848,0.467278,43361.0,43358.0,0.0009338]
[1642261724048,0.467278,43361.0,43359.0,6.876e-05]
[1642261724449,0.367278,43361.0,43359.0,6.876e-05]
[1642261725051,0.467278,43361.0,43358.0,0.0009338]
[1642261725253,0.467278,43361.0,43359.0,6.876e-05]
[1642261726299,0.467278,43361.0,43358.0,0.0009338]
[1642261726496,0.467278,43361.0,43359.0,6.876e-05]
[1642261727497,0.467278,43361.0,43358.0,0.0009338]
[1642261727697,0.467278,43361.0,43359.0,6.876e-05]
[1642261728697,0.467278,43361.0,43358.0,0.0009338]
[1642261728906,0.467278,43361.0,43359.0,6.876e-05]
[1642261729500,0.466078,43361.0,43359.0,6.876e-05]
[1642261729957,0.466078,43361.0,43358.0,0.0009338]
[1642261730161,0.466078,43361.0,43359.0,6.876e-05]
[1642261731161,0.466078,43361.0,43358.0,0.0009338]
[1642261731356,0.466078,43361.0,43359.0,6.876e-05]
[1642261731556,0.366078,43361.0,43359.0,6.876e-05]
[1642261732258,0.366078,43361.0,43358.0,0.0009338]
[1642261732760,0.366078,43361.0,43359.0,6.876e-05]
[1642261732960,0.466078,43361.0,43359.0,6.876e-05]
[1642261733598,0.466078,43361.0,43358.0,0.0009338]
[1642261733800,0.466078,43361.0,43359.0,6.876e-05]
[1642261734596,0.466078,43361.0,43358.0,0.0009338]
[1642261734796,0.466078,43361.0,43359.0,6.876e-05]
[1642261735599,0.461078,43361.0,43359.0,6.876e-05]
[1642261735799,0.461078,43361.0,43358.0,0.0009338]
[1642261736000,0.461078,43361.0,43359.0,6.876e-05]
[1642261738247,0.461078,43361.0,43358.0,0.0007514]
[1642261738449,0.461078,43361.0,43359.0,6.876e-05]
[1642261739450,0.461078,43361.0,43358.0,0.0007514]
[1642261739648,0.461078,43361.0,43359.0,6.876e-05]
[1642261740550,0.458078,43361.0,43359.0,6.876e-05]
[1642261740750,0.458078,43361.0,43358.0,0.0008115]
[1642261740998,0.4577653,43361.0,43359.0,6.876e-05]
[1642261741797,0.4577653,43361.0,43358.0,0.0008115]
[1642261741997,0.4577653,43361.0,43350.0,0.0012619]
[1642261742197,0.1,43361.0,43350.0,0.0012619]
[1642261742401,0.1,43361.0,43351.0,0.00013753]
[1642261742599,0.43471165,43362.0,43351.0,0.00013753]
[1642261742798,0.33471165,43362.0,43351.0,0.00013753]
[1642261742999,0.43471165,43362.0,43351.0,0.00013753]
[1642261743202,0.35796625,43353.0,43351.0,0.00013753]
[1642261743401,0.35796625,43353.0,43352.0,0.374977]
[1642261743601,0.35796625,43353.0,43351.0,0.00013753]
[1642261743803,0.35796625,43353.0,43352.0,0.37509734]
[1642261744004,0.35796625,43353.0,43352.0,0.00012034]
[1642261744207,0.35796625,43353.0,43352.0,0.375382]
[1642261744403,0.35796625,43353.0,43352.0,0.350405]
[1642261746360,0.35796625,43353.0,43352.0,0.800405]
[1642261746559,0.35796625,43353.0,43352.0,1.175382]
[1642261746763,0.35796625,43353.0,43352.0,0.725382]
[1642261749194,0.35796625,43353.0,43352.0,0.72529515]
[1642261749994,0.35796625,43353.0,43352.0,0.37529515]
[1642261750197,0.45796625,43353.0,43352.0,0.00031815]
[1642261751800,0.83294325,43353.0,43352.0,0.00031815]
[1642261752002,1.14855659,43353.0,43352.0,0.00031815]
[1642261752246,0.87924325,43353.0,43352.0,0.00031815]
[1642261752448,1.1756411,43353.0,43352.0,0.00031815]
[1642261754147,1.1756411,43353.0,43352.0,0.00031099]
[1642261754851,0.243463,43352.0,43350.0,0.00086238]
[1642261755049,0.69411088,43351.0,43350.0,0.00086238]
[1642261755249,0.71908788,43351.0,43350.0,0.00086238]
[1642261755449,0.81908788,43351.0,43350.0,0.00086238]
[1642261756099,0.81908788,43351.0,43348.0,0.0008624]
[1642261756100,0.93578182,43351.0,43348.0,0.0008624]
[1642261756298,1.451169,43349.0,43348.0,0.0008624]
[1642261756497,0.347469,43349.0,43348.0,0.0008624]
[1642261756698,0.389763,43349.0,43348.0,0.00093116]
[1642261757097,0.7236865,43349.0,43348.0,6.876e-05]
[1642261757497,0.7236865,43349.0,43346.0,0.00086242]
[1642261757698,0.7236865,43349.0,43347.0,8.595e-05]
[1642261758699,0.7236865,43349.0,43346.0,0.00086492]
[1642261758899,0.7236865,43349.0,43347.0,8.595e-05]
[1642261759755,0.7813909,43349.0,43347.0,8.595e-05]
[1642261759962,0.7236865,43349.0,43346.0,0.00086492]
[1642261760359,0.7236865,43349.0,43347.0,8.595e-05]
[1642261760959,0.78139006,43349.0,43347.0,8.595e-05]
[1642261761160,0.374977,43348.0,43346.0,0.00086492]
[1642261761359,0.374977,43348.0,43347.0,8.595e-05]
[1642261761360,0.421277,43348.0,43347.0,8.595e-05]
[1642261761558,0.516277,43348.0,43347.0,8.595e-05]
[1642261762361,0.32030653,43347.0,43345.0,0.00086419]
[1642261762564,0.64933388,43346.0,43345.0,0.00086419]
[1642261762962,0.74933388,43346.0,43345.0,0.00098452]
[1642261763162,0.74933388,43346.0,43345.0,0.00012033]
[1642261763504,0.74933388,43346.0,43343.0,0.00086421]
[1642261763904,0.74933388,43346.0,43344.0,0.00013752]
[1642261764403,0.00125226,43345.0,43344.0,0.00013752]
[1642261764605,0.057712,43343.0,43329.0,1.71193737]
[1642261764803,0.057712,43343.0,43332.0,0.00020628]
[1642261764804,0.0463,43342.0,43332.0,0.00020628]
[1642261765404,0.30807551,43334.0,43332.0,0.00020628]
[1642261765604,0.38822617,43333.0,43329.0,0.00025785]
[1642261766806,0.38822617,43333.0,43329.0,0.00075577]
[1642261767105,0.0463,43332.0,43330.0,0.00024066]
[1642261768251,0.0463,43332.0,43329.0,0.00075577]
[1642261768751,0.0463,43332.0,43330.0,0.00024066]
[1642261769550,0.0463,43332.0,43329.0,0.00119198]
[1642261769750,0.0463,43332.0,43330.0,0.00024066]
[1642261770359,0.0463,43332.0,43324.0,0.57740967]
[1642261770551,0.0463,43332.0,43329.0,0.00093413]
[1642261771502,0.0463,43332.0,43325.0,8.595e-05]
[1642261771702,0.0463,43332.0,43328.0,0.00093414]
[1642261772301,0.31561334,43332.0,43328.0,0.00093414]
[1642261772501,0.1463,43332.0,43328.0,0.00093414]
[1642261772701,0.1463,43332.0,43322.0,0.00013752]
[1642261772907,0.26931334,43331.0,43318.0,0.66940893]
[1642261773104,0.29451641,43322.0,43318.0,0.66940893]
[1642261773303,0.34081641,43322.0,43318.0,0.66940893]
[1642261773903,0.34081641,43322.0,43315.0,0.294]
[1642261774102,0.34081641,43322.0,43316.0,0.37503]
[1642261774303,0.34081641,43322.0,43316.0,0.37513314]
[1642261774504,0.34081641,43322.0,43316.0,0.00010314]
[1642261774753,0.34081641,43322.0,43312.0,0.00126661]
[1642261774954,8.595e-05,43321.0,43313.0,0.37503]
[1642261775355,6.876e-05,43320.0,43315.0,0.00049358]
[1642261775562,6.876e-05,43320.0,43316.0,0.37503]
[1642261775858,8.595e-05,43321.0,43316.0,0.37503]
[1642261776058,8.595e-05,43321.0,43315.0,0.00049358]
[1642261776260,6.876e-05,43320.0,43312.0,0.00126661]
[1642261776459,6.876e-05,43320.0,43316.0,0.00049357]
[1642261777456,6.876e-05,43320.0,43307.0,1.95496444]
[1642261777657,6.876e-05,43320.0,43316.0,0.00093428]
[1642261778717,0.0463,43319.0,43308.0,0.00013752]
[1642261779017,0.0463,43319.0,43316.0,0.00093428]
[1642261779819,0.0463,43319.0,43310.0,0.5836726]
[1642261780018,0.0463,43319.0,43315.0,0.00093428]
[1642261780316,0.0463,43319.0,43316.0,0.37503]
[1642261780921,6.876e-05,43320.0,43316.0,0.37503]
[1642261782553,6.876e-05,43320.0,43316.0,0.37596428]
[1642261783157,6.876e-05,43320.0,43318.0,0.5836726]
[1642261783755,6.876e-05,43320.0,43319.0,0.37503]
[1642261783955,6.876e-05,43320.0,43319.0,0.77503]
[1642261784155,6.876e-05,43320.0,43319.0,0.37503]
[1642261784357,6.876e-05,43320.0,43317.0,0.58460687]
[1642261784557,6.876e-05,43320.0,43318.0,0.37503]
[1642261784760,6.876e-05,43320.0,43318.0,0.5836726]
[1642261785560,6.876e-05,43320.0,43317.0,0.5836726]
[1642261786401,6.876e-05,43320.0,43316.0,0.58460687]
[1642261786802,0.29162576,43320.0,43316.0,0.58460687]
[1642261787001,0.29162576,43320.0,43316.0,0.5836726]
[1642261787403,6.876e-05,43320.0,43316.0,0.58460688]
[1642261787702,6.876e-05,43320.0,43317.0,0.37503]
[1642261788105,6.876e-05,43320.0,43317.0,0.9587026]
[1642261788303,0.38524331,43328.0,43318.0,0.85]
[1642261788304,0.2641791,43328.0,43318.0,0.85]
[1642261788502,0.00086704,43323.0,43317.0,0.90932984]
[1642261788707,0.00086704,43323.0,43318.0,0.37503]
[1642261788902,0.00086704,43323.0,43319.0,0.5836726]
[1642261789102,0.00086704,43323.0,43320.0,0.37503]
[1642261789404,0.26985043,43327.0,43320.0,0.9587026]
[1642261789602,0.26985043,43327.0,43320.0,0.5836726]
[1642261789603,0.00044999,43325.0,43320.0,0.5836726]
[1642261790056,6.876e-05,43324.0,43320.0,0.5836726]
[1642261790251,6.876e-05,43324.0,43321.0,0.37503]
[1642261791856,6.876e-05,43324.0,43316.0,0.26957362]
[1642261792057,6.876e-05,43324.0,43320.0,0.00093424]
[1642261793156,6.876e-05,43324.0,43316.0,0.00120067]
[1642261793357,6.876e-05,43324.0,43320.0,0.00093423]
[1642261794205,6.876e-05,43324.0,43316.0,0.25761717]
[1642261794404,6.876e-05,43324.0,43317.0,0.37503]
[1642261794606,6.876e-05,43324.0,43320.0,0.00093423]
[1642261795404,6.876e-05,43324.0,43316.0,0.00120067]
[1642261795606,6.876e-05,43324.0,43317.0,0.37503]
[1642261795805,6.876e-05,43324.0,43320.0,0.00093423]
[1642261796708,6.876e-05,43324.0,43316.0,0.00120067]
[1642261796709,0.27728805,43321.0,43316.0,0.00120067]
[1642261796910,0.51501445,43321.0,43320.0,0.00093423]
[1642261797110,0.27728805,43321.0,43320.0,0.00093423]
[1642261797757,0.51981439,43321.0,43320.0,0.00093423]
[1642261797956,0.51669087,43321.0,43316.0,10.00120067]
[1642261798160,0.27728805,43321.0,43318.0,0.00093425]
[1642261798556,0.25542645,43320.0,43318.0,0.00093425]
[1642261798759,0.24062747,43319.0,43318.0,0.00093425]
[1642261799158,0.27728805,43321.0,43316.0,10.0]
[1642261799357,0.37728805,43321.0,43316.0,10.00093427]
[1642261799758,0.25463429,43320.0,43316.0,10.00093427]
[1642261800159,0.25335804,43319.0,43316.0,10.00093427]
[1642261800358,0.25335804,43319.0,43316.0,10.0]
[1642261800560,0.0463,43318.0,43316.0,10.00093428]
[1642261801518,0.0463,43318.0,43316.0,10.0]
[1642261804118,0.2763,43318.0,43316.0,10.0]
[1642261805562,0.23792469,43317.0,43316.0,10.0]
[1642261805962,0.23792469,43317.0,43316.0,10.00006876]
[1642261806361,0.33,43318.0,43316.0,10.00006876]
[1642261809807,0.23,43318.0,43316.0,10.00006876]
[1642261810008,0.36401896,43318.0,43316.0,10.00006876]
[1642261810611,0.35901896,43318.0,43316.0,10.00006876]
[1642261812014,0.35901896,43318.0,43316.0,9.99506876]
[1642261812266,0.25901896,43318.0,43316.0,9.99506876]
[1642261812470,0.35901896,43318.0,43316.0,9.99506876]
[1642261813667,0.25901896,43318.0,43316.0,9.99506876]
[1642261813867,0.35901896,43318.0,43316.0,9.99506876]
[1642261814677,0.225,43318.0,43317.0,2.42503]
[1642261815468,0.22473467,43318.0,43317.0,2.42503]
[1642261815670,0.22473467,43318.0,43317.0,0.37503]
[1642261818507,0.22473467,43318.0,43317.0,0.97503]
[1642261819413,0.22473467,43318.0,43317.0,2.97503]
[1642261820678,0.22473467,43318.0,43317.0,0.97503]
[1642261820881,6.876e-05,43324.0,43318.0,0.12475707]
[1642261821080,6.876e-05,43324.0,43323.0,0.00120925]
[1642261821279,6.876e-05,43324.0,43323.0,0.37623925]
[1642261821681,6.876e-05,43324.0,43323.0,0.6894706]
[1642261822082,0.23006876,43324.0,43323.0,0.98393206]
[1642261822486,0.23006876,43324.0,43323.0,2.0894706]
[1642261822883,0.23006876,43324.0,43323.0,1.77623925]
[1642261823810,0.23006876,43324.0,43323.0,2.10482741]
[1642261824011,0.23006876,43324.0,43323.0,2.16253241]
[1642261825712,0.23006876,43324.0,43323.0,2.20883241]
[1642261826212,0.00059648,43326.0,43324.0,2.61337]
[1642261826413,0.00059648,43326.0,43325.0,3.02133]
[1642261826613,0.2,43340.0,43325.0,3.02260766]
[1642261826815,0.2,43340.0,43338.0,0.00129392]
[1642261827666,0.2,43340.0,43339.0,2.84864368]
[1642261827863,0.2,43340.0,43339.0,3.28135668]
[1642261828063,0.2,43340.0,43339.0,3.48392965]
[1642261828064,0.20027504,43340.0,43339.0,3.48392965]
[1642261829163,1.2263,43360.0,43343.0,0.0576732]
[1642261829362,0.00267494,43356.0,43350.0,0.00128081]
[1642261829862,0.00025786,43355.0,43354.0,0.00121103]
[1642261832425,0.23025786,43355.0,43348.0,0.26935235]
[1642261832625,0.23025786,43355.0,43349.0,0.37628679]
[1642261832830,0.0008834,43354.0,43349.0,0.37628679]
[1642261833225,0.00022347,43353.0,43349.0,0.37628679]
[1642261833425,0.00022347,43353.0,43352.0,0.00127835]
[1642261833627,0.00064274,43354.0,43352.0,0.00127835]
[1642261833825,0.68933019,43360.0,43352.0,0.00127835]
[1642261834025,0.00064276,43355.0,43352.0,0.00127835]
[1642261835177,0.00064276,43356.0,43352.0,0.00127835]
[1642261835581,0.00025786,43355.0,43352.0,0.00127835]
[1642261835977,0.00024066,43354.0,43352.0,0.00127835]
[1642261836476,0.58933019,43360.0,43352.0,0.00127835]
[1642261836477,0.00022347,43353.0,43352.0,0.00127835]
[1642261836877,0.00022347,43353.0,43352.0,1.57630835]
[1642261837478,0.001,43361.0,43353.0,0.45]
[1642261837677,0.00065076,43355.0,43353.0,0.45]
[1642261837877,0.00065076,43355.0,43354.0,0.37503]
[1642261838276,0.00065076,43355.0,43352.0,0.00127835]
[1642261838711,0.00010315,43359.0,43352.0,0.00127835]
[1642261839111,0.33390432,43360.0,43352.0,0.00127835]
[1642261839112,8.596e-05,43358.0,43352.0,0.00127835]
[1642261839511,6.877e-05,43357.0,43352.0,0.00127835]
[1642261840212,0.00071147,43357.0,43352.0,0.00127835]
[1642261841013,6.877e-05,43357.0,43352.0,0.00127835]
[1642261841312,0.00071147,43357.0,43352.0,0.00127835]
[1642261842362,6.877e-05,43357.0,43352.0,0.00127835]
[1642261842561,0.00071391,43357.0,43352.0,0.00127835]
[1642261843564,6.877e-05,43357.0,43352.0,0.00127835]
[1642261843763,0.00071391,43357.0,43352.0,0.00127835]
[1642261844765,6.877e-05,43357.0,43352.0,0.00127835]
[1642261844967,0.00071391,43357.0,43352.0,0.00127835]
[1642261846009,0.00064514,43357.0,43352.0,1.00127835]
[1642261846212,0.00064514,43357.0,43353.0,0.37509876]
[1642261847014,0.001,43361.0,43353.0,0.37509876]
[1642261847313,0.00064441,43357.0,43353.0,6.876e-05]
[1642261847713,0.00064441,43357.0,43354.0,0.37503]
[1642261848318,0.001,43361.0,43354.0,0.37503]
[1642261848515,0.00064441,43358.0,43353.0,0.3907957]
[1642261848717,0.00064441,43358.0,43354.0,0.37503]
[1642261849516,0.001,43361.0,43354.0,0.37503]
[1642261849760,0.001,43361.0,43353.0,6.876e-05]
[1642261849761,0.00064442,43358.0,43353.0,6.876e-05]
[1642261850762,0.001,43361.0,43353.0,6.876e-05]
[1642261850969,0.00064463,43358.0,43353.0,6.876e-05]
[1642261851365,0.00064463,43358.0,43354.0,0.37503]
[1642261851965,0.001,43361.0,43354.0,0.37503]
[1642261852164,0.00064464,43358.0,43353.0,6.876e-05]
[1642261852365,0.00064464,43358.0,43354.0,0.37503]
[1642261852863,0.00064464,43358.0,43357.0,1.78900872]
[1642261853064,0.001,43361.0,43357.0,2.16403872]
[1642261853264,0.00064458,43360.0,43358.0,0.37503]
[1642261854328,0.001,43361.0,43358.0,0.37503]
[1642261854532,0.00164459,43361.0,43353.0,6.876e-05]
[1642261855530,0.001,43361.0,43353.0,6.876e-05]
[1642261855731,0.00064458,43359.0,43353.0,6.876e-05]
[1642261855933,0.00064458,43359.0,43354.0,0.37503]
[1642261856730,0.001,43361.0,43354.0,0.37503]
[1642261856935,0.00072629,43359.0,43353.0,6.876e-05]
[1642261857132,0.00072629,43359.0,43358.0,2.51427645]
[1642261857362,0.26387108,43359.0,43358.0,0.37503]
[1642261857563,0.26387108,43359.0,43353.0,6.876e-05]
[1642261857962,0.26314479,43359.0,43353.0,6.876e-05]
[1642261858162,0.00072629,43358.0,43353.0,6.876e-05]
[1642261858362,0.00072629,43358.0,43354.0,0.37503]
[1642261859462,0.00072629,43358.0,43354.0,0.432694]
[1642261860365,0.26314479,43359.0,43354.0,0.432694]
[1642261860565,0.00072629,43358.0,43354.0,0.432694]
[1642261861017,0.00072629,43358.0,43354.0,0.24768486]
[1642261861216,0.00072629,43358.0,43347.0,1.1268]
[1642261861217,0.26943313,43358.0,43347.0,1.1268]
[1642261861417,0.00593537,43357.0,43345.0,0.2901]
[1642261861615,0.0007582,43357.0,43348.0,8.596e-05]
[1642261861817,0.0007582,43357.0,43352.0,0.00125367]
[1642261862214,0.0007582,43357.0,43353.0,0.432637]
[1642261862422,0.0007582,43357.0,43356.0,2.974975]
[1642261862620,0.001,43361.0,43360.0,0.374975]
[1642261862621,5.82e-05,43361.0,43360.0,0.374975]
[1642261862916,0.002,43364.0,43362.0,0.374975]
[1642261863317,0.002,43364.0,43363.0,1.324975]
[1642261863518,0.0001,43364.0,43363.0,1.324975]
[1642261863717,0.00022033,43364.0,43363.0,1.324975]
[1642261864769,0.002,43368.0,43366.0,0.00124572]
[1642261864965,0.002,43368.0,43367.0,1.324975]
[1642261865367,0.00206876,43368.0,43367.0,1.324975]
[1642261865968,0.00206876,43368.0,43367.0,2.124975]
[1642261866166,0.00206876,43368.0,43367.0,2.171275]
[1642261867166,0.00231476,43369.0,43368.0,1.8692148]
[1642261867967,0.001,43372.0,43368.0,1.8692148]
[1642261868172,0.001,43377.0,43372.0,0.305804]
[1642261868369,0.001,43377.0,43375.0,2.974975]
[1642261868615,0.001,43384.0,43377.0,0.374975]
[1642261868819,0.0033367,43384.0,43383.0,0.00122003]
[1642261869018,0.002,43393.0,43389.0,1.55]
[1642261869220,0.002,43393.0,43387.0,0.374975]
[1642261869221,0.002,43393.0,43392.0,0.374975]
[1642261869418,0.040995,43400.0,43393.0,2.05]
[1642261869616,0.02231043,43400.0,43399.0,0.00120341]
[1642261871216,0.02231043,43400.0,43399.0,0.874975]
[1642261871418,0.21908991,43404.0,43400.0,2.969975]
[1642261871621,0.25374488,43417.0,43400.0,2.969975]
[1642261871622,0.4415351,43428.0,43417.0,0.00122072]
[1642261871828,0.4415351,43428.0,43417.0,1.32589151]
[1642261872017,0.4415351,43428.0,43417.0,2.18482915]
[1642261872562,0.4415351,43428.0,43417.0,2.24240515]
[1642261872759,0.43066396,43428.0,43418.0,1.224975]
[1642261872961,0.43066396,43428.0,43424.0,0.00120638]
[1642261873160,0.43066396,43428.0,43409.0,0.11815892]
[1642261873161,0.374975,43427.0,43409.0,0.11815892]
[1642261873362,0.374975,43427.0,43405.0,0.3107]
[1642261873363,0.00120022,43424.0,43405.0,0.3107]
[1642261873563,0.0463,43423.0,43415.0,0.00120957]
[1642261873761,1.00098147,43422.0,43415.0,0.00120957]
[1642261873959,0.0463,43421.0,43415.0,0.00120957]
[1642261874160,0.34891248,43418.0,43402.0,0.9564]
[1642261874366,0.25026596,43411.0,43405.0,0.00122646]
[1642261874563,0.05026596,43411.0,43397.0,0.2882]
[1642261874761,0.00072198,43410.0,43398.0,0.37618519]
[1642261875062,0.00070479,43409.0,43398.0,0.37618519]
[1642261875462,0.3253594,43405.0,43398.0,0.00121019]
[1642261875661,0.3253594,43405.0,43399.0,0.37512971]
[1642261875860,0.0463,43404.0,43399.0,0.00015471]
[1642261876111,0.0463,43404.0,43400.0,0.37511252]
[1642261876312,0.0463,43404.0,43400.0,0.374975]
[1642261876512,0.0463,43404.0,43399.0,0.00015471]
[1642261876513,0.0463,43404.0,43401.0,0.00012033]
[1642261876916,0.0463,43404.0,43399.0,0.00015471]
[1642261877517,0.0463,43404.0,43402.0,0.00121818]
[1642261877712,0.0463,43410.0,43402.0,0.00121818]
[1642261877912,0.0463,43410.0,43403.0,8.595e-05]
[1642261878512,0.29014409,43405.0,43403.0,8.595e-05]
[1642261878913,0.29014409,43405.0,43404.0,0.374975]
[1642261879214,0.0463,43410.0,43404.0,0.37504376]
[1642261880062,0.0463,43410.0,43407.0,0.00129904]
[1642261880260,0.0463,43410.0,43408.0,0.374975]
[1642261880460,0.0458,43410.0,43408.0,0.374975]
[1642261880660,0.0208,43410.0,43409.0,0.35335375]
[1642261880862,0.0208,43410.0,43409.0,1.32832875]
[1642261881260,0.0208,43410.0,43409.0,0.72832875]
[1642261881462,0.05839251,43422.0,43409.0,0.72832875]
[1642261881463,0.32415319,43414.0,43409.0,0.72832875]
[1642261881662,0.26260161,43416.0,43410.0,0.374975]
[1642261881863,0.0463,43415.0,43410.0,0.374975]
[1642261882262,0.00010314,43414.0,43410.0,0.374975]
[1642261882664,8.595e-05,43413.0,43404.0,6.876e-05]
[1642261882864,0.0463,43412.0,43405.0,0.374975]
[1642261883065,0.04636876,43412.0,43405.0,0.37621045]
[1642261883509,0.04636876,43412.0,43406.0,1.124975]
[1642261883510,0.27743445,43407.0,43406.0,1.124975]
[1642261883716,0.27743445,43407.0,43406.0,0.374975]
[1642261883911,0.27743445,43407.0,43405.0,0.00123545]
[1642261884113,0.27743445,43407.0,43406.0,0.374975]
[1642261884312,0.27743445,43407.0,43405.0,0.00123545]
[1642261884716,0.27743445,43407.0,43401.0,0.00012033]
[1642261885113,0.27743445,43407.0,43399.0,0.00015471]
[1642261885314,0.27743445,43407.0,43397.0,0.00093342]
[1642261885315,0.0463,43406.0,43398.0,0.0001719]
[1642261885515,0.40222565,43404.0,43398.0,0.0001719]
[1642261885719,0.0463,43403.0,43398.0,0.0001719]
[1642261885915,0.26460603,43399.0,43390.0,0.90174357]
[1642261886114,0.26460603,43399.0,43391.0,0.374975]
[1642261886115,0.0463,43398.0,43391.0,0.374975]
[1642261886315,0.0463,43398.0,43391.0,0.37509533]
[1642261887559,0.0463,43398.0,43391.0,0.70570541]
[1642261887959,0.0413,43398.0,43391.0,0.70570541]
[1642261888155,0.04052,43398.0,43391.0,0.70570541]
[1642261888357,0.04052,43398.0,43391.0,1.00020341]
[1642261889256,0.04052,43398.0,43391.0,1.26610599]
[1642261889456,0.04052,43398.0,43391.0,1.00020341]
[1642261890257,0.04052,43398.0,43391.0,1.26668771]
[1642261890557,0.04052,43398.0,43393.0,0.057606]
[1642261890756,0.04052,43398.0,43394.0,0.374975]
[1642261891015,0.04052,43398.0,43394.0,0.37504376]
[1642261891425,0.62816247,43401.0,43394.0,0.37504376]
[1642261891615,0.0463,43400.0,43394.0,0.37504376]
[1642261891817,0.0463,43400.0,43394.0,0.37597715]
[1642261892816,0.0463,43400.0,43395.0,0.26612931]
[1642261893015,0.0463,43400.0,43396.0,0.374975]
[1642261894866,6.876e-05,43402.0,43396.0,0.374975]
[1642261895366,6.876e-05,43402.0,43397.0,0.24305]
[1642261895566,6.876e-05,43402.0,43398.0,0.374975]
[1642261895766,6.876e-05,43402.0,43398.0,0.64113466]
[1642261895967,0.24918922,43402.0,43398.0,0.374975]
[1642261898066,0.24918922,43402.0,43398.0,0.669473]
[1642261898268,0.0463,43401.0,43398.0,0.669473]
[1642261898513,0.0463,43401.0,43398.0,0.294498]
[1642261898814,1.529,43399.0,43398.0,0.294498]
[1642261899013,1.950275,43399.0,43398.0,0.294498]
[1642261899211,1.80435617,43399.0,43398.0,0.294498]
[1642261902015,1.80435617,43399.0,43398.0,0.24768486]
[1642261902016,2.65435617,43399.0,43398.0,0.24768486]
[1642261902268,1.80435617,43399.0,43398.0,0.24768486]
[1642261902468,2.10435617,43399.0,43398.0,0.24768486]
[1642261902667,1.80435617,43399.0,43398.0,0.24768486]
[1642261903067,1.81022278,43399.0,43398.0,0.24768486]
[1642261903267,1.81022278,43399.0,43398.0,0.22768486]
[1642261905672,1.91022278,43399.0,43398.0,0.22768486]
[1642261906111,2.6,43398.0,43391.0,0.24768486]
[1642261906315,0.05764747,43388.0,43376.0,0.1069193]
[1642261906512,0.579,43384.0,43368.0,1.1637]
[1642261906710,0.0463,43383.0,43377.0,0.00029223]
[1642261907112,0.28325752,43379.0,43377.0,0.00029223]
[1642261907311,0.0463,43378.0,43377.0,0.00029223]
[1642261907610,0.0463,43378.0,43371.0,0.00039537]
[1642261908015,0.0463,43378.0,43372.0,0.374975]
[1642261908211,0.0463,43378.0,43367.0,0.00046413]
[1642261908411,0.0463,43378.0,43373.0,0.00036099]
[1642261908611,0.0463,43378.0,43367.0,0.00046413]
[1642261908811,0.0463,43378.0,43369.0,0.28257652]
[1642261909010,0.0463,43378.0,43370.0,0.374975]
[1642261909211,0.0463,43378.0,43370.0,0.00041256]
[1642261909412,0.25631579,43377.0,43371.0,0.00039537]
[1642261909611,0.0463,43376.0,43372.0,0.00093364]
[1642261909877,0.0463,43375.0,43372.0,0.00093364]
[1642261910074,0.0463,43374.0,43373.0,0.00036099]
[1642261910476,0.0463,43374.0,43373.0,0.55036099]
[1642261910677,0.022104,43374.0,43373.0,0.00036099]
[1642261911075,0.022104,43374.0,43371.0,0.00093365]
[1642261911375,0.022104,43374.0,43372.0,0.00037818]
[1642261912376,0.022104,43374.0,43371.0,0.00093365]
[1642261912573,0.022104,43374.0,43372.0,0.00037818]
[1642261913613,0.022104,43374.0,43371.0,0.00093365]
[1642261913817,0.022104,43374.0,43372.0,0.00037818]
[1642261914613,0.022104,43374.0,43371.0,0.00093365]
[1642261914814,0.022104,43374.0,43372.0,0.00037818]
[1642261915414,0.27579357,43374.0,43372.0,0.00037818]
[1642261916014,0.27579357,43374.0,43371.0,0.00093365]
[1642261916214,0.27579357,43374.0,43372.0,0.00037818]
[1642261916613,0.022104,43374.0,43372.0,0.00037818]
[1642261918264,0.022104,43374.0,43371.0,0.00093365]
[1642261918469,0.022104,43374.0,43372.0,0.00037818]
[1642261919566,0.022104,43374.0,43371.0,0.00093365]
[1642261919766,0.022104,43374.0,43372.0,0.37535318]
[1642261920066,0.022104,43374.0,43373.0,0.00036099]
[1642261920665,0.022104,43374.0,43371.0,0.00093365]
[1642261920868,0.022104,43374.0,43372.0,0.00037818]
[1642261921911,0.022104,43374.0,43371.0,0.00093365]
[1642261922112,0.022104,43374.0,43372.0,0.00037818]